[Event "Belt and Road Women 2024"]
[Site "Yuecheng Shaoxing"]
[Date "2024.07.26"]
[Round "3.4"]
[White "Badelka, Olga"]
[Black "Yan, Tianqi"]
[Result "1/2-1/2"]
[ECO "E51"]
[WhiteElo "2389"]
[BlackElo "2306"]
[Annotator "RC"]
[PlyCount "69"]
[EventDate "2024.08.01"]
[EventType "swiss"]
[EventCountry "CHN"]
[SourceTitle "playchess.com"]
[Source "ChessBase"]
[SourceQuality "1"]
[TimeControl "5400+30"]

1. d4 {[%emt 0:00:04]} Nf6 {[%emt 0:00:20]} 2. c4 {[%emt 0:00:08]} e6 {[%emt 0:00:09]} 3. Nc3 {[%emt 0:00:07]} Bb4 {[%emt 0:00:27]} 4. e3 {[%emt 0:00:05]} O-O {[%emt 0:00:30]} 5. Bd2 {[%emt 0:00:07]} d5 {[%emt 0:00:26]} 6. Nf3 {[%emt 0:00:11]} Re8 {[%emt 0:00:58]} 7. Bd3 {[%emt 0:01:08]} dxc4 {[%emt 0:02:54]} 8. Bxc4 {[%emt 0:00:06]} a6 {[%emt 0:00:14]} 9. a3 {[%emt 0:02:38]} Bf8 {[%emt 0:05:13]} 10. Rc1 {[%emt 0:12:46]} c5 {[%emt 0:06:28]} 11. O-O {[%emt 0:03:41]} b5 {[%emt 0:03:01]} 12. Ba2 {[%emt 0:06:48]} cxd4 {[%emt 0:07:26]} 13. exd4 {[%emt 0:04:10]} Bb7 {[%emt 0:03:10]} 14. Bg5 {[%emt 0:02:54]} Be7 {[%emt 0:01:54]} 15. Re1 {[%emt 0:07:40]} Nbd7 {[%emt 0:04:58]} 16. Bb1 {[%emt 0:09:40]} Qb6 {[%emt 0:04:58]} 17. Be3 {[%emt 0:09:12]} Qd6 {[%emt 0:01:51]} 18. Ng5 {[%emt 0:00:07]} h6 {[%emt 0:11:12]} 19. Nge4 {[%emt 0:03:27]} Nxe4 {[%emt 0:00:20]} 20. Bxe4 {[%emt 0:00:14]} Bxe4 {[%emt 0:01:20]} 21. Nxe4 {[%emt 0:00:04]} Qd5 {[%emt 0:00:21]} 22. Nc3 {[%emt 0:00:28]} Qd6 {[%emt 0:10:04]} 23. d5 {[%emt 0:01:15]} Rad8 {[%emt 0:08:31]} 24. dxe6 {[%emt 0:11:55]} Qxe6 {[%emt 0:01:47]} 25. Bf4 {[%emt 0:02:43]} Nc5 {[%emt 0:01:42]} 26. Rxe6 {[%emt 0:01:40]} Rxd1+ {[%emt 0:00:17]} 27. Rxd1 {[%emt 0:00:03]} Nxe6 {[%emt 0:00:23]} 28. Be3 {[%emt 0:00:30]} Bf6 {[%emt 0:02:17]} 29. Kf1 {[%emt 0:04:47]} Bxc3 {[%emt 0:06:33]} 30. bxc3 {[%emt 0:00:03]} Rc8 {[%emt 0:00:05]} 31. Rd6 {[%emt 0:00:24]} a5 {[%emt 0:00:58]} 32. Rd3 {[%emt 0:00:28]} Rc4 {[%emt 0:00:53]} 33. Ke1 {[%emt 0:01:25]} b4 {[%emt 0:01:03]} 34. cxb4 {[%emt 0:00:06]} axb4 {[%emt 0:00:03]} 35. axb4 {[%emt 0:00:18]} 1/2-1/2

[Event "Belt and Road Women 2024"]
[Site "Yuecheng Shaoxing"]
[Date "2024.07.26"]
[Round "3.5"]
[White "Xiao, Yiyi"]
[Black "Velpula Sarayu"]
[Result "0-1"]
[ECO "A49"]
[WhiteElo "2338"]
[BlackElo "2384"]
[Annotator "RC"]
[PlyCount "78"]
[EventDate "2024.08.01"]
[EventType "swiss"]
[EventCountry "CHN"]
[SourceTitle "playchess.com"]
[Source "ChessBase"]
[SourceQuality "1"]
[TimeControl "5400+30"]

1. d4 {[%emt 0:00:06]} Nf6 {[%emt 0:00:26]} 2. Nf3 {[%emt 0:00:37]} g6 {[%emt 0:00:27]} 3. g3 {[%emt 0:00:17]} Bg7 {[%emt 0:00:31]} 4. Bg2 {[%emt 0:00:07]} O-O {[%emt 0:00:34]} 5. O-O {[%emt 0:00:08]} d6 {[%emt 0:00:25]} 6. b3 {[%emt 0:00:57]} c5 {[%emt 0:00:33]} 7. c4 {[%emt 0:00:40]} d5 {[%emt 0:02:50]} 8. Bb2 {[%emt 0:00:50]} dxc4 {[%emt 0:00:20]} 9. bxc4 {[%emt 0:01:44]} cxd4 {[%emt 0:00:14]} 10. Nxd4 {[%emt 0:00:10]} Qb6 {[%emt 0:00:18]} 11. Qb3 {[%emt 0:01:32]} Nfd7 {[%emt 0:00:10]} 12. e3 {[%emt 0:06:55]} Nc6 {[%emt 0:01:53]} 13. Qxb6 {[%emt 0:05:52]} Nxb6 {[%emt 0:10:36]} 14. Nd2 {[%emt 0:07:17]} Nxd4 {[%emt 0:05:27]} 15. Bxd4 {[%emt 0:00:09]} Rd8 {[%emt 0:00:35]} 16. Bxg7 {[%emt 0:18:48]} Kxg7 {[%emt 0:00:39]} 17. Nb3 {[%emt 0:01:33]} Nxc4 {[%emt 0:03:40]} 18. Rfc1 {[%emt 0:00:46]} Nd6 {[%emt 0:01:49]} 19. Rc7 {[%emt 0:08:18]} Kf8 {[%emt 0:15:17]} 20. Rac1 {[%emt 0:05:16]} Rb8 {[%emt 0:09:07]} 21. Na5 {[%emt 0:08:13]} Be6 {[%emt 0:03:25]} 22. a3 {[%emt 0:10:30]} Rd7 {[%emt 0:04:27]} 23. Rxd7 {[%emt 0:01:47]} Bxd7 {[%emt 0:00:01]} 24. Rc7 {[%emt 0:00:08]} Bc8 {[%emt 0:05:42]} 25. Rc1 {[%emt 0:03:46]} Be6 {[%emt 0:01:52]} 26. Rb1 {[%emt 0:04:39]} Bf5 {[%emt 0:01:29]} 27. e4 {[%emt 0:05:04]} Bxe4 {[%emt 0:06:50]} 28. Bxe4 {[%emt 0:00:15]} Nxe4 {[%emt 0:00:06]} 29. Nc6 {[%emt 0:01:39]} Rc8 {[%emt 0:00:40]} 30. Nxa7 {[%emt 0:00:04]} Rc2 {[%emt 0:03:56]} 31. Rxb7 {[%emt 0:01:44]} Nxf2 {[%emt 0:01:58]} 32. h4 {[%emt 0:00:04]} e5 {[%emt 0:03:04]} 33. a4 {[%emt 0:01:38]} Ng4 {[%emt 0:04:05]} 34. Nb5 {[%emt 0:01:03]} e4 {[%emt 0:02:19]} 35. a5 {[%emt 0:01:53]} e3 {[%emt 0:01:52]} 36. Nd4 {[%emt 0:00:06]} Ra2 {[%emt 0:00:15]} 37. Rb8+ {[%emt 0:03:41]} Kg7 {[%emt 0:00:12]} 38. Nb3 {[%emt 0:00:05]} Rb2 {[%emt 0:01:51]} 39. a6 {[%emt 0:00:25]} e2 {[%emt 0:00:07]} 0-1

[Event "Belt and Road Women 2024"]
[Site "Yuecheng Shaoxing"]
[Date "2024.07.26"]
[Round "3.6"]
[White "Velikic, Adela"]
[Black "Mammadzada, Gunay"]
[Result "0-1"]
[ECO "A14"]
[WhiteElo "2290"]
[BlackElo "2444"]
[Annotator "RC"]
[PlyCount "110"]
[EventDate "2024.08.01"]
[EventType "swiss"]
[EventCountry "CHN"]
[SourceTitle "playchess.com"]
[Source "ChessBase"]
[SourceQuality "1"]
[TimeControl "5400+30"]

1. Nf3 {[%emt 0:00:04]} d5 {[%emt 0:00:10]} 2. g3 {[%emt 0:00:09]} Nf6 {[%emt 0:00:48]} 3. Bg2 {[%emt 0:00:13]} e6 {[%emt 0:00:05]} 4. O-O {[%emt 0:00:16]} Be7 {[%emt 0:00:04]} 5. c4 {[%emt 0:00:51]} O-O {[%emt 0:00:21]} 6. b3 {[%emt 0:00:44]} c5 {[%emt 0:00:46]} 7. cxd5 {[%emt 0:00:41]} Nxd5 {[%emt 0:04:16]} 8. Bb2 {[%emt 0:02:43]} Nc6 {[%emt 0:05:06]} 9. Nc3 {[%emt 0:27:25]} Bf6 {[%emt 0:00:47]} 10. Qc1 {[%emt 0:03:55]} b6 {[%emt 0:04:01]} 11. Ne4 {[%emt 0:10:16]} Bxb2 {[%emt 0:01:47]} 12. Qxb2 {[%emt 0:00:05]} Ba6 {[%emt 0:04:45]} 13. d3 {[%emt 0:03:00]} Rc8 {[%emt 0:06:47]} 14. Rfc1 {[%emt 0:04:45]} Qe7 {[%emt 0:05:30]} 15. a3 {[%emt 0:07:22]} Rc7 {[%emt 0:07:14]} 16. Ne5 {[%emt 0:02:44]} Nxe5 {[%emt 0:10:27]} 17. Qxe5 {[%emt 0:00:05]} Rfc8 {[%emt 0:07:04]} 18. Nd2 {[%emt 0:06:21]} h6 {[%emt 0:06:41]} 19. Nc4 {[%emt 0:10:26]} b5 {[%emt 0:01:35]} 20. Nd2 {[%emt 0:07:58]} f6 {[%emt 0:05:18]} 21. Qh5 {[%emt 0:02:20]} Bb7 {[%emt 0:00:41]} 22. Rc2 {[%emt 0:01:52]} f5 {[%emt 0:03:16]} 23. Rac1 {[%emt 0:02:31]} Nf6 {[%emt 0:01:56]} 24. Qh3 {[%emt 0:02:03]} Bxg2 {[%emt 0:00:09]} 25. Qxg2 {[%emt 0:00:24]} Qd6 {[%emt 0:00:53]} 26. Qf3 {[%emt 0:01:41]} Kh7 {[%emt 0:02:50]} 27. Kf1 {[%emt 0:02:14]} a6 {[%emt 0:01:01]} 28. Qf4 {[%emt 0:00:24]} Qd5 {[%emt 0:03:22]} 29. Kg1 {[%emt 0:00:01]} Rc6 {[%emt 0:01:10]} 30. a4 {[%emt 0:01:18]} g5 {[%emt 0:01:21]} 31. Qf3 {[%emt 0:00:28]} Qd4 {[%emt 0:01:18]} 32. axb5 {[%emt 0:00:26]} axb5 {[%emt 0:00:01]} 33. Ra2 {[%emt 0:00:30]} g4 {[%emt 0:00:21]} 34. Qe3 {[%emt 0:00:41]} Nd5 {[%emt 0:01:09]} 35. Ra7+ {[%emt 0:00:28]} Kg6 {[%emt 0:00:01]} 36. Qxd4 {[%emt 0:00:29]} cxd4 {[%emt 0:00:01]} 37. Rxc6 {[%emt 0:00:33]} Rxc6 {[%emt 0:00:02]} 38. Kg2 {[%emt 0:00:30]} Rc2 {[%emt 0:00:16]} 39. Nf1 {[%emt 0:00:29]} Rxe2 {[%emt 0:00:11]} 40. Rb7 {[%emt 0:00:19]} Ne3+ {[%emt 0:01:01]} 41. Nxe3 {[%emt 0:00:08]} dxe3 {[%emt 0:00:02]} 42. Rxb5 {[%emt 0:00:28]} Rxf2+ {[%emt 0:00:52]} 43. Kg1 {[%emt 0:00:01]} Kf6 {[%emt 0:00:26]} 44. d4 {[%emt 0:00:31]} Rb2 {[%emt 0:00:31]} 45. Kf1 {[%emt 0:00:38]} Rxh2 {[%emt 0:00:55]} 46. d5 {[%emt 0:00:26]} Rf2+ {[%emt 0:04:47]} 47. Ke1 {[%emt 0:00:07]} exd5 {[%emt 0:00:08]} 48. Rxd5 {[%emt 0:00:26]} Rf3 {[%emt 0:00:06]} 49. b4 {[%emt 0:01:35]} Rxg3 {[%emt 0:00:05]} 50. b5 {[%emt 0:00:04]} Rg1+ {[%emt 0:00:11]} 51. Ke2 {[%emt 0:00:04]} f4 {[%emt 0:00:37]} 52. Rd8 {[%emt 0:01:06]} Rb1 {[%emt 0:00:22]} 53. Rd6+ {[%emt 0:01:02]} Kg5 {[%emt 0:01:58]} 54. b6 {[%emt 0:00:32]} Rb2+ {[%emt 0:00:09]} 55. Ke1 {[%emt 0:00:19]} f3 {[%emt 0:00:08]} 0-1

[Event "Belt and Road Women 2024"]
[Site "Yuecheng Shaoxing"]
[Date "2024.07.26"]
[Round "3.7"]
[White "Wang, Qinxuanyi"]
[Black "Shuvalova, Polina"]
[Result "1/2-1/2"]
[ECO "D24"]
[WhiteElo "2149"]
[BlackElo "2467"]
[Annotator "TA"]
[PlyCount "70"]
[EventDate "2024.08.01"]
[EventType "swiss"]
[EventCountry "CHN"]
[SourceTitle "playchess.com"]
[Source "ChessBase"]
[SourceQuality "1"]
[TimeControl "5400+30"]

{[%evp 9,70,32,47,45,39,48,47,41,51,35,36,35,43,41,45,25,35,5,6,5,14,17,8,0,0,0,0,5,5,0,0,0,0,0,0,0,0,0,0,0,0,-52,-59,-48,-55,-52,-55,-54,-20,-16,-16,-22,-18,-27,-14,-33,0,0,0,0,0,0,0]} 1. d4 {[%emt 0:00:05]} Nf6 {[%emt 0:00:04]} 2. c4 {[%emt 0:00:09]} e6 {[%emt 0:00:05]} 3. Nf3 {[%emt 0:00:06]} d5 {[%emt 0:00:05]} 4. Nc3 {[%emt 0:00:05]} dxc4 {[%emt 0:00:06]} 5. e4 {[%emt 0:00:05][%cal Be2e4,Be4e5][%mdl 32]} b5 {[%emt 0:00:10]} 6. e5 {[%emt 0:00:06]} Nd5 {[%emt 0:00:07]} 7. Nxb5 {[%emt 0:00:06]} Nb6 {[%emt 0:00:05]} 8. Be3 {[%emt 0:00:07] White is slightly better.} Nc6 {[%emt 0:01:18]} 9. Nc3 {[%emt 0:00:45]} Bb7 {[%emt 0:01:50]} 10. Be2 {[%emt 0:00:07]} Be7 {[%emt 0:00:32]} 11. O-O {[%emt 0:00:18]} O-O {[%emt 0:01:52]} 12. Qb1 {[%emt 0:00:18]} Nb4 {[%emt 0:14:01]} 13. Rd1 {[%emt 0:20:21]} Rb8 {[%emt 0:04:40]} 14. Nd2 {[%emt 0:08:16]} N4d5 {[%emt 0:02:44]} 15. Nxd5 {[%emt 0:02:25]} Qxd5 {[%emt 0:11:19]} 16. Bf3 {[%emt 0:04:28]} Qb5 {[%emt 0:02:05]} 17. Bxb7 {[%emt 0:00:35]} Rxb7 {[%emt 0:00:05]} 18. Qc2 {[%emt 0:00:17]} c5 {[%emt 0:09:31]} 19. dxc5 {[%emt 0:16:53]} Bxc5 {[%emt 0:01:08]} 20. a4 {[%emt 0:02:02][%cal Ba2a4,Ba4a5][%mdl 32]} Qb4 {[%emt 0:01:58]} 21. Bxc5 {[%emt 0:01:34]} Qxc5 {[%emt 0:00:04]} 22. a5 {[%emt 0:00:05]} Nd7 {[%emt 0:01:34][%cal Bb6d7,Bd7e5,Be5c6,Bc6a5,Ba5b3,Bb3d4][%mdl 32]} 23. Nxc4 {[%emt 0:01:56]} Nxe5 {[%emt 0:04:43]} 24. Qe4 {[%emt 0:00:09][%csl LRb7,LRe5]} Nc6 {[%emt 0:01:53]} 25. Ne3 {[%emt 0:11:28]} (25. Rac1 $11 Rb4 26. Qe3 Qxe3 27. fxe3) 25... Rb4 $1 $15 {[%emt 0:01:32]} (25... Rxb2 $2 26. Rdc1 Qg5 27. Qxc6 $18 (27. Rxc6 Rxf2 28. Nf1 Rf4 $18)) (25... Nxa5 $2 26. Rxa5 Qe7 27. Nc4 $18) 26. Qd3 {[%emt 0:00:38] [#] Rac1 would now be deadly.} (26. Rac1 Qxc1 (26... Rxe4 27. Rxc5 Ne5 28. b4 $16) 27. Rxc1 Rxe4 $19) 26... Nxa5 {[%emt 0:12:34]} (26... Rxb2 $2 {is the wrong capture.} 27. Rac1 Qxa5 28. Rxc6 $18) 27. Qa3 {[%emt 0:07:08]} Nb3 {[%emt 0:05:04]} 28. Qxa7 {[%emt 0:00:50]} Qxa7 {[%emt 0:03:07]} 29. Rxa7 {[%emt 0:00:06]} Nd4 {[%emt 0:00:09][%cal Oh7h5]} 30. Kf1 {[%emt 0:05:49]} h5 {[%emt 0:02:03]} 31. Rc7 {[%emt 0:03:48]} e5 {[%emt 0:04:01]} 32. Nc2 {[%emt 0:00:55]} Rxb2 {[%emt 0:00:15]} 33. Nxd4 {[%emt 0:00:07] The position is equal.} Rd8 {[%emt 0:00:48]} 34. Rc4 {[%emt 0:01:21] Prevents Rb4} Rb6 {[%emt 0:03:29]} 35. Ke2 {[%emt 0:00:44]} exd4 {[%emt 0:00:57] Weighted Error Value: White=0.06 (flawless) /Black=0.05 (flawless) .  Mistake:       	White=1     	---        Inaccurate:     	White=1     	Black=2      OK:         	White=16    	Black=11     Best:        	White=2     	Black=1      Strong:       	---       	Black=1} 1/2-1/2

[Event "Belt and Road Women 2024"]
[Site "Yuecheng Shaoxing"]
[Date "2024.07.26"]
[Round "3.8"]
[White "Lu, Miaoyi"]
[Black "Bai, Xue"]
[Result "1-0"]
[ECO "C92"]
[WhiteElo "2449"]
[BlackElo "2114"]
[Annotator "RC"]
[PlyCount "61"]
[EventDate "2024.08.01"]
[EventType "swiss"]
[EventCountry "CHN"]
[SourceTitle "playchess.com"]
[Source "ChessBase"]
[SourceQuality "1"]
[TimeControl "5400+30"]

1. e4 {[%emt 0:00:01]} e5 {[%emt 0:00:06]} 2. Nf3 {[%emt 0:00:03]} Nc6 {[%emt 0:00:04]} 3. Bb5 {[%emt 0:00:04]} a6 {[%emt 0:00:05]} 4. Ba4 {[%emt 0:00:03]} Nf6 {[%emt 0:00:06]} 5. O-O {[%emt 0:00:03]} Be7 {[%emt 0:00:06]} 6. Re1 {[%emt 0:00:04]} b5 {[%emt 0:00:04]} 7. Bb3 {[%emt 0:00:03]} d6 {[%emt 0:00:06]} 8. c3 {[%emt 0:00:05]} O-O {[%emt 0:00:07]} 9. h3 {[%emt 0:00:03]} Bb7 {[%emt 0:01:43]} 10. d4 {[%emt 0:00:02]} Re8 {[%emt 0:00:05]} 11. Nbd2 {[%emt 0:00:12]} Bf8 {[%emt 0:00:06]} 12. a3 {[%emt 0:00:37]} g6 {[%emt 0:03:39]} 13. Ba2 {[%emt 0:01:27]} Bg7 {[%emt 0:03:54]} 14. b4 {[%emt 0:00:02]} Qe7 {[%emt 0:02:13]} 15. Nb3 {[%emt 0:20:27]} exd4 {[%emt 0:18:09]} 16. cxd4 {[%emt 0:01:45]} Qd7 {[%emt 0:00:18]} 17. d5 {[%emt 0:26:00]} Ne5 {[%emt 0:00:37]} 18. Nxe5 {[%emt 0:02:10]} Rxe5 {[%emt 0:00:07]} 19. Bb2 {[%emt 0:03:57]} Re7 {[%emt 0:05:08]} 20. Na5 {[%emt 0:02:43]} c6 {[%emt 0:01:53]} 21. Qf3 {[%emt 0:01:30]} Nh5 {[%emt 0:09:48]} 22. Bxg7 {[%emt 0:00:22]} Nxg7 {[%emt 0:00:05]} 23. dxc6 {[%emt 0:00:09]} Bxc6 {[%emt 0:00:04]} 24. Nxc6 {[%emt 0:00:04]} Qxc6 {[%emt 0:00:04]} 25. Bd5 {[%emt 0:00:11]} Qe8 {[%emt 0:00:05]} 26. Bxa8 {[%emt 0:00:32]} Qxa8 {[%emt 0:00:05]} 27. Qd3 {[%emt 0:05:01]} Re6 {[%emt 0:02:22]} 28. Qd5 {[%emt 0:01:55]} Qa7 {[%emt 0:00:26]} 29. Rac1 {[%emt 0:05:33]} Ne8 {[%emt 0:01:09]} 30. Rc8 {[%emt 0:04:40]} Kg7 {[%emt 0:01:05]} 31. Rec1 {[%emt 0:00:09]} 1-0

[Event "Belt and Road Women 2024"]
[Site "Yuecheng Shaoxing"]
[Date "2024.07.26"]
[Round "3.9"]
[White "Stefanova, Antoaneta"]
[Black "Guo, Qi"]
[Result "1/2-1/2"]
[ECO "D37"]
[WhiteElo "2417"]
[BlackElo "2362"]
[Annotator "RC"]
[PlyCount "60"]
[EventDate "2024.08.01"]
[EventType "swiss"]
[EventCountry "CHN"]
[SourceTitle "playchess.com"]
[Source "ChessBase"]
[SourceQuality "1"]
[TimeControl "5400+30"]

1. d4 {[%emt 0:00:09]} d5 {[%emt 0:00:15]} 2. c4 {[%emt 0:00:25]} e6 {[%emt 0:00:06]} 3. Nf3 {[%emt 0:00:15]} Nf6 {[%emt 0:00:08]} 4. e3 {[%emt 0:00:05]} Be7 {[%emt 0:00:42]} 5. Nc3 {[%emt 0:00:27]} O-O {[%emt 0:00:36]} 6. a3 {[%emt 0:00:36]} b6 {[%emt 0:11:40]} 7. cxd5 {[%emt 0:07:20]} exd5 {[%emt 0:00:22]} 8. Bd3 {[%emt 0:01:01]} c5 {[%emt 0:00:44]} 9. O-O {[%emt 0:06:04]} Bb7 {[%emt 0:06:02]} 10. b3 {[%emt 0:06:05]} Nbd7 {[%emt 0:06:05]} 11. Bb2 {[%emt 0:02:27]} a6 {[%emt 0:03:39]} 12. Rc1 {[%emt 0:02:19]} Bd6 {[%emt 0:02:35]} 13. dxc5 {[%emt 0:05:54]} bxc5 {[%emt 0:00:27]} 14. Bf5 {[%emt 0:00:12]} Nb6 {[%emt 0:15:52]} 15. Rc2 {[%emt 0:02:40]} Qe7 {[%emt 0:04:19]} 16. Ne2 {[%emt 0:10:28]} Ne4 {[%emt 0:12:47]} 17. Ng3 {[%emt 0:04:56]} Nxg3 {[%emt 0:06:07]} 18. hxg3 {[%emt 0:01:00]} a5 {[%emt 0:02:06]} 19. Qa1 {[%emt 0:06:38]} f6 {[%emt 0:00:07]} 20. a4 {[%emt 0:01:38]} Bc8 {[%emt 0:04:08]} 21. Bxc8 {[%emt 0:04:08]} Rfxc8 {[%emt 0:00:37]} 22. Rd1 {[%emt 0:01:06]} Qe6 {[%emt 0:01:25]} 23. Rcd2 {[%emt 0:01:59]} Bf8 {[%emt 0:00:38]} 24. Bc3 {[%emt 0:05:24]} d4 {[%emt 0:03:23]} 25. exd4 {[%emt 0:02:03]} Qxb3 {[%emt 0:00:04]} 26. Rb1 {[%emt 0:02:00]} Qe6 {[%emt 0:00:10]} 27. dxc5 {[%emt 0:07:43]} Bxc5 {[%emt 0:01:02]} 28. Bd4 {[%emt 0:00:34]} Nc4 {[%emt 0:05:38]} 29. Qa2 {[%emt 0:02:56]} Bb4 {[%emt 0:00:19]} 30. Rc2 {[%emt 0:01:33]} Qf7 {[%emt 0:00:06]} 1/2-1/2

[Event "Belt and Road Women 2024"]
[Site "Yuecheng Shaoxing"]
[Date "2024.07.26"]
[Round "3.10"]
[White "Gu, Xiaobing"]
[Black "Beydullayeva, Govhar"]
[Result "0-1"]
[ECO "B99"]
[WhiteElo "2135"]
[BlackElo "2417"]
[Annotator "RC"]
[PlyCount "70"]
[EventDate "2024.08.01"]
[EventType "swiss"]
[EventCountry "CHN"]
[SourceTitle "playchess.com"]
[Source "ChessBase"]
[SourceQuality "1"]
[TimeControl "5400+30"]

1. e4 {[%emt 0:00:02]} c5 {[%emt 0:00:05]} 2. Nf3 {[%emt 0:00:13]} d6 {[%emt 0:00:06]} 3. d4 {[%emt 0:00:18]} cxd4 {[%emt 0:00:04]} 4. Nxd4 {[%emt 0:00:05]} Nf6 {[%emt 0:00:03]} 5. Nc3 {[%emt 0:00:08]} a6 {[%emt 0:00:03]} 6. Bg5 {[%emt 0:00:05]} e6 {[%emt 0:00:22]} 7. f4 {[%emt 0:00:05]} Be7 {[%emt 0:00:16]} 8. Qf3 {[%emt 0:00:15]} Qc7 {[%emt 0:00:10]} 9. O-O-O {[%emt 0:00:44]} Nbd7 {[%emt 0:00:24]} 10. g4 {[%emt 0:03:13]} b5 {[%emt 0:01:04]} 11. Bxf6 {[%emt 0:00:06]} Nxf6 {[%emt 0:00:12]} 12. g5 {[%emt 0:00:04]} Nd7 {[%emt 0:00:03]} 13. f5 {[%emt 0:00:04]} O-O {[%emt 0:00:47]} 14. Rg1 {[%emt 0:11:21]} b4 {[%emt 0:04:48]} 15. Nce2 {[%emt 0:03:13]} e5 {[%emt 0:02:11]} 16. Nb3 {[%emt 0:04:22]} f6 {[%emt 0:01:37]} 17. g6 {[%emt 0:12:36]} h6 {[%emt 0:02:13]} 18. Ng3 {[%emt 0:01:01]} Bb7 {[%emt 0:11:33]} 19. Nd2 {[%emt 0:02:40]} Nb6 {[%emt 0:07:43]} 20. Qb3+ {[%emt 0:05:39]} d5 {[%emt 0:05:44]} 21. Bg2 {[%emt 0:00:07]} a5 {[%emt 0:03:55]} 22. exd5 {[%emt 0:10:05]} a4 {[%emt 0:00:22]} 23. Qd3 {[%emt 0:00:09]} Rfd8 {[%emt 0:02:47]} 24. Qe2 {[%emt 0:18:13]} b3 {[%emt 0:19:15]} 25. axb3 {[%emt 0:03:59]} a3 {[%emt 0:00:13]} 26. Kb1 {[%emt 0:05:12]} axb2 {[%emt 0:01:25]} 27. c4 {[%emt 0:02:34]} Qc5 {[%emt 0:08:36]} 28. Nge4 {[%emt 0:08:31]} Qd4 {[%emt 0:09:19]} 29. Nf3 {[%emt 0:00:07]} Ra1+ {[%emt 0:00:42]} 30. Kc2 {[%emt 0:00:04]} b1=Q+ {[%emt 0:01:39]} 31. Rxb1 {[%emt 0:00:04]} Ra2+ {[%emt 0:00:03]} 32. Kc1 {[%emt 0:00:09]} Ba3+ {[%emt 0:00:04]} 33. Rb2 {[%emt 0:03:10]} Ra1+ {[%emt 0:01:08]} 34. Kc2 {[%emt 0:00:22]} Qxb2+ {[%emt 0:00:04]} 35. Kd3 {[%emt 0:00:02]} Qxb3+ {[%emt 0:00:10]} 0-1

[Event "Belt and Road Women 2024"]
[Site "Yuecheng Shaoxing"]
[Date "2024.07.26"]
[Round "3.11"]
[White "Yang, Yijing"]
[Black "Pham, Le Thao Nguyen"]
[Result "1/2-1/2"]
[ECO "D10"]
[WhiteElo "2022"]
[BlackElo "2395"]
[Annotator "RC"]
[PlyCount "82"]
[EventDate "2024.08.01"]
[EventType "swiss"]
[EventCountry "CHN"]
[SourceTitle "playchess.com"]
[Source "ChessBase"]
[SourceQuality "1"]
[TimeControl "5400+30"]

1. c4 {[%emt 0:00:05]} c6 {[%emt 0:00:21]} 2. d4 {[%emt 0:00:26]} d5 {[%emt 0:00:13]} 3. cxd5 {[%emt 0:00:25]} cxd5 {[%emt 0:00:06]} 4. Bf4 {[%emt 0:00:07]} Nc6 {[%emt 0:00:21]} 5. e3 {[%emt 0:00:23]} Nf6 {[%emt 0:00:32]} 6. Nc3 {[%emt 0:00:21]} a6 {[%emt 0:00:17]} 7. Be2 {[%emt 0:00:26]} e6 {[%emt 0:06:15]} 8. Nf3 {[%emt 0:03:20]} Bd6 {[%emt 0:01:25]} 9. Ne5 {[%emt 0:16:55]} O-O {[%emt 0:09:19]} 10. O-O {[%emt 0:03:25]} Bxe5 {[%emt 0:02:28]} 11. Bxe5 {[%emt 0:00:15]} b5 {[%emt 0:01:34]} 12. Rc1 {[%emt 0:07:28]} Bb7 {[%emt 0:00:39]} 13. Bxf6 {[%emt 0:17:34]} Qxf6 {[%emt 0:01:36]} 14. Bd3 {[%emt 0:00:14]} Rfd8 {[%emt 0:01:30]} 15. f4 {[%emt 0:04:06]} g6 {[%emt 0:01:09]} 16. g4 {[%emt 0:05:00]} Rac8 {[%emt 0:04:30]} 17. Qd2 {[%emt 0:09:05]} Qe7 {[%emt 0:05:40]} 18. Qg2 {[%emt 0:09:28]} Na5 {[%emt 0:05:31]} 19. b3 {[%emt 0:01:50]} Qb4 {[%emt 0:08:41]} 20. Nb1 {[%emt 0:03:09]} Nc6 {[%emt 0:04:12]} 21. Qf2 {[%emt 0:03:23]} Qe7 {[%emt 0:04:03]} 22. Nd2 {[%emt 0:01:46]} Nb4 {[%emt 0:04:08]} 23. Bb1 {[%emt 0:00:11]} Rxc1 {[%emt 0:01:01]} 24. Rxc1 {[%emt 0:00:03]} Rc8 {[%emt 0:00:18]} 25. Qe1 {[%emt 0:01:35]} e5 {[%emt 0:06:10]} 26. dxe5 {[%emt 0:03:34]} Rxc1 {[%emt 0:01:18]} 27. Qxc1 {[%emt 0:00:02]} d4 {[%emt 0:00:40]} 28. Ne4 {[%emt 0:05:04]} d3 {[%emt 0:12:55]} 29. Nf6+ {[%emt 0:00:56]} Kg7 {[%emt 0:00:34]} 30. Qc3 {[%emt 0:03:39]} Qd8 {[%emt 0:02:47]} 31. Qxb4 {[%emt 0:00:27]} d2 {[%emt 0:01:09]} 32. Ne8+ {[%emt 0:00:21]} Kg8 {[%emt 0:01:04]} 33. Nf6+ {[%emt 0:00:03]} Kh8 {[%emt 0:00:53]} 34. Bc2 {[%emt 0:00:14]} d1=Q+ {[%emt 0:04:32]} 35. Bxd1 {[%emt 0:00:02]} Qxd1+ {[%emt 0:00:09]} 36. Kf2 {[%emt 0:00:02]} Qf3+ {[%emt 0:03:19]} 37. Ke1 {[%emt 0:00:02]} Qxe3+ {[%emt 0:00:09]} 38. Kd1 {[%emt 0:01:48]} Kg7 {[%emt 0:02:26]} 39. Ne8+ {[%emt 0:00:19]} Kg8 {[%emt 0:00:03]} 40. Nf6+ {[%emt 0:00:05]} Kg7 {[%emt 0:00:03]} 41. Ne8+ {[%emt 0:00:13]} Kg8 {[%emt 0:00:04]} 1/2-1/2